bitfinex/quotes_BTCUSD_20250428
["timestamp","ask_amount","ask_price","bid_price","bid_amount"]
[1745851260847,0.35454085,94667.0,94661.0,0.0008476]
[1745851261031,0.34,94665.0,94661.0,0.0008476]
[1745851261237,0.44689014,94664.0,94661.0,0.0008476]
[1745851261512,0.46653813,94664.0,94661.0,0.0008476]
[1745851261792,0.47640745,94664.0,94661.0,0.0008476]
[1745851261998,0.48364275,94664.0,94661.0,0.0008476]
[1745851262330,0.60639396,94664.0,94661.0,0.0008476]
[1745851262532,0.80346396,94664.0,94661.0,0.0008476]
[1745851262780,0.83297329,94664.0,94661.0,0.0008476]
[1745851263154,0.88477329,94664.0,94661.0,0.0008476]
[1745851263839,0.87977329,94664.0,94661.0,0.0008476]
[1745851264076,0.34,94640.0,94631.0,0.004]
[1745851264473,0.00986932,94639.0,94631.0,0.004]
[1745851264841,0.02688329,94638.0,94631.0,0.004]
[1745851265201,0.01964799,94637.0,94631.0,0.004]
[1745851265388,0.01975875,94637.0,94631.0,0.004]
[1745851265545,0.03675261,94636.0,94631.0,0.004]
[1745851266128,0.01964799,94635.0,94631.0,0.004]
[1745851266410,0.0072353,94634.0,94631.0,0.004]
[1745851266793,0.02951731,94633.0,94631.0,0.004]
[1745851267217,0.01964799,94632.0,94631.0,0.004]
[1745851267578,0.02688329,94632.0,94631.0,0.004]
[1745851268253,0.03675261,94632.0,94631.0,0.004]
[1745851269779,0.03675261,94632.0,94631.0,0.0992]
[1745851271306,0.03675261,94632.0,94631.0,0.0517]
[1745851271564,0.03675261,94632.0,94631.0,0.004]
[1745851272819,0.03775261,94632.0,94631.0,0.008]
[1745851273270,0.03675261,94632.0,94631.0,0.004]
[1745851273465,0.06637499,94632.0,94631.0,0.004]
[1745851273748,0.06737499,94632.0,94631.0,0.008]
[1745851273881,0.06737499,94632.0,94631.0,0.0027142]
[1745851275615,0.52880598,94632.0,94631.0,0.0027142]
[1745851275823,0.59338867,94632.0,94631.0,0.0027142]
[1745851276040,0.01454085,94624.0,94612.0,0.0008482]
[1745851276241,0.35454085,94618.0,94612.0,0.0008482]
[1745851276446,0.35454085,94613.0,94584.0,0.0472]
[1745851276655,0.35454085,94611.0,94584.0,0.0472]
[1745851276865,0.35454085,94609.0,94584.0,0.0472]
[1745851277079,0.35454085,94607.0,94580.0,0.0495]
[1745851277283,0.35454085,94605.0,94580.0,0.0495]
[1745851277458,1.01365899,94605.0,94580.0,0.0495]
[1745851277687,0.80760037,94605.0,94580.0,0.0495]
[1745851277865,0.81501266,94605.0,94580.0,0.0495]
[1745851278381,0.73422033,94605.0,94604.0,0.00130516]
[1745851279460,0.83372033,94605.0,94604.0,0.00130516]
[1745851280466,0.83572033,94605.0,94604.0,0.00130516]
[1745851280941,0.62961733,94605.0,94604.0,0.00130516]
[1745851281280,1.78912733,94605.0,94604.0,0.00130516]
[1745851281699,1.75447633,94605.0,94604.0,0.00130516]
[1745851281901,1.43227733,94605.0,94604.0,0.00130516]
[1745851282097,1.29952233,94605.0,94604.0,0.00130516]
[1745851282306,0.90007433,94605.0,94604.0,0.00130516]
[1745851282527,0.89507433,94605.0,94604.0,0.00130516]
[1745851282986,0.90007433,94605.0,94604.0,0.00130516]
[1745851283155,0.99795433,94605.0,94604.0,0.00130516]
[1745851283358,1.09771976,94605.0,94604.0,0.00130516]
[1745851283561,1.10271976,94605.0,94604.0,0.00130516]
[1745851284607,1.10271976,94605.0,94566.0,0.0472248]
[1745851284608,0.0105725,94585.0,94566.0,0.0004248]
[1745851284813,0.46143099,94579.0,94578.0,0.00298563]
[1745851285013,0.61771082,94579.0,94578.0,0.00298563]
[1745851285214,0.68590746,94579.0,94578.0,0.00298563]
[1745851285422,4.19528946,94579.0,94578.0,0.00298563]
[1745851285641,4.47710748,94579.0,94578.0,0.00298563]
[1745851285800,0.90909495,94579.0,94578.0,0.00298563]
[1745851286005,1.28485595,94579.0,94578.0,0.00298563]
[1745851286450,0.35454085,94578.0,94566.0,0.0004248]
[1745851286652,0.35454085,94576.0,94571.0,0.0044577]
[1745851286991,0.34,94574.0,94571.0,0.0044577]
[1745851287111,0.34,94572.0,94571.0,0.0044577]
[1745851287316,0.19706901,94572.0,94571.0,0.0044577]
[1745851287543,1.59563699,94572.0,94571.0,0.0044577]
[1745851287740,2.33701866,94572.0,94571.0,0.0044577]
[1745851287981,2.08461895,94572.0,94571.0,0.0044577]
[1745851288185,1.98093295,94572.0,94571.0,0.0044577]
[1745851288535,1.17555295,94572.0,94571.0,0.0044577]
[1745851289368,1.28244309,94572.0,94571.0,0.0044577]
[1745851289782,1.28244309,94572.0,94534.0,0.0455]
[1745851289783,0.35454085,94571.0,94534.0,0.0455]
[1745851290014,0.34,94550.0,94541.0,0.00413717]
[1745851290211,0.10689014,94549.0,94541.0,0.00413717]
[1745851290548,0.01976731,94548.0,94541.0,0.00413717]
[1745851290875,0.01976731,94547.0,94541.0,0.00413717]
[1745851291300,0.01976731,94546.0,94541.0,0.00413717]
[1745851291541,0.00988436,94545.0,94541.0,0.00413717]
[1745851291918,0.01976731,94544.0,94541.0,0.00413717]
[1745851292319,0.01976731,94543.0,94541.0,0.00413717]
[1745851292985,0.02965167,94542.0,94541.0,0.00413717]
[1745851293320,0.02965167,94542.0,94541.0,0.05223717]
[1745851295805,0.03065167,94542.0,94541.0,0.05223717]
[1745851296238,0.02965167,94542.0,94541.0,0.05223717]
[1745851296732,0.03065167,94542.0,94541.0,0.05223717]
[1745851302936,0.02965167,94542.0,94541.0,0.05223717]
[1745851303139,0.03065167,94542.0,94541.0,0.05223717]
[1745851304189,0.03806396,94542.0,94541.0,0.05223717]
[1745851304919,0.03806396,94542.0,94541.0,0.15912731]
[1745851305691,0.03806396,94542.0,94541.0,0.62064261]
[1745851305822,0.03806396,94542.0,94541.0,0.61952731]
[1745851306025,0.08454291,94602.0,94541.0,0.61952731]
[1745851306026,0.36217895,94590.0,94543.0,0.0963]
[1745851306292,0.36217895,94600.0,94561.0,0.0488]
[1745851306476,0.36217895,94600.0,94563.0,0.0475]
[1745851306702,0.001,94605.0,94571.0,0.0963]
[1745851306838,0.001,94605.0,94572.0,0.10689014]
[1745851307042,0.36217895,94600.0,94572.0,0.10689014]
[1745851307624,0.001,94605.0,94573.0,0.4106]
[1745851307832,0.001,94605.0,94574.0,0.10689014]
[1745851308058,0.0014564,94605.0,94574.0,0.10689014]
[1745851308258,0.0014564,94605.0,94575.0,0.00211444]
[1745851308429,0.0014564,94605.0,94576.0,0.10689014]
[1745851308887,0.0014564,94605.0,94580.0,0.36217895]
[1745851308888,0.008,94590.0,94580.0,0.36217895]
[1745851309073,0.008,94590.0,94581.0,0.10689014]
[1745851309323,0.36217895,94600.0,94581.0,0.10689014]
[1745851309529,0.36217895,94600.0,94577.0,0.0457]
[1745851309703,0.36217895,94591.0,94576.0,0.001]
[1745851310063,0.36217895,94591.0,94574.0,0.09792]
[1745851310321,0.34,94598.0,94574.0,0.09792]
[1745851311185,0.36217895,94590.0,94574.0,0.09792]
[1745851311569,0.34,94599.0,94574.0,0.09792]
[1745851311792,0.36217895,94590.0,94574.0,0.09792]
[1745851311991,0.36217895,94584.0,94574.0,0.09792]
[1745851313398,0.34,94583.0,94561.0,0.0479]
[1745851313607,0.36217895,94571.0,94561.0,0.0479]
[1745851313810,0.36217895,94580.0,94561.0,0.0479]
[1745851314446,0.36217895,94571.0,94553.0,0.0465]
[1745851314856,0.36217895,94571.0,94553.0,0.04663717]
[1745851315646,0.36217895,94580.0,94553.0,0.04663717]
[1745851315849,0.001,94571.0,94553.0,0.04663717]
[1745851316003,0.001,94571.0,94554.0,0.10689014]
[1745851316448,0.44689014,94589.0,94554.0,0.10689014]
[1745851316630,0.34,94587.0,94554.0,0.10689014]
[1745851316838,0.36217895,94590.0,94554.0,0.10689014]
[1745851316839,0.003,94580.0,94554.0,0.10689014]
[1745851317071,0.003,94580.0,94554.0,0.10900514]
[1745851318164,0.0197077,94579.0,94554.0,0.10900514]
[1745851318410,0.01724379,94578.0,94569.0,0.36217895]
[1745851318633,0.0197077,94577.0,94571.0,0.0495]
[1745851318845,0.0197077,94577.0,94572.0,0.10689014]
[1745851319508,0.00985341,94578.0,94572.0,0.10689014]
[1745851319714,0.0197077,94577.0,94572.0,0.10689014]
[1745851319915,0.00985341,94576.0,94572.0,0.11089014]
[1745851321192,0.00985341,94576.0,94572.0,0.10689014]
[1745851321399,0.00985341,94575.0,94572.0,0.10689014]
[1745851321701,0.00985341,94575.0,94572.0,0.11089014]
[1745851322163,0.00985341,94575.0,94572.0,0.10689014]
[1745851322381,0.00985341,94575.0,94573.0,0.0457]
[1745851322586,0.001,94576.0,94574.0,0.10689014]
[1745851322898,0.02709808,94593.0,94574.0,0.10689014]
[1745851323128,0.001,94575.0,94574.0,0.10689014]
[1745851323569,0.01085223,94575.0,94574.0,0.10689014]
[1745851324712,0.00985223,94575.0,94574.0,0.10689014]
[1745851324884,0.00985223,94575.0,94574.0,0.11089014]
[1745851325334,0.001,94576.0,94574.0,0.11089014]
[1745851325492,0.02709808,94597.0,94574.0,0.10689014]
[1745851325687,0.001,94575.0,94574.0,0.11089014]
[1745851326736,0.34,94599.0,94574.0,0.11089014]
[1745851326737,0.02709808,94594.0,94574.0,0.10689014]
[1745851326939,0.36217895,94590.0,94573.0,0.0457]
[1745851327162,0.02709808,94594.0,94572.0,0.00807787]
[1745851327163,0.36217895,94584.0,94572.0,0.00807787]
[1745851327349,0.08454291,94592.0,94572.0,0.00807787]
[1745851327350,0.36217895,94590.0,94572.0,0.41867787]
[1745851327523,0.36217895,94590.0,94572.0,0.4106]
[1745851328005,0.02956403,94589.0,94572.0,0.4106]
[1745851328213,0.001,94576.0,94574.0,0.004]
[1745851328660,0.0197077,94587.0,94572.0,0.4106]
[1745851328871,0.00985633,94575.0,94572.0,0.4106]
[1745851329071,0.00985633,94575.0,94572.0,0.4116]
[1745851329429,0.00985633,94574.0,94572.0,0.4116]
[1745851329637,0.00985633,94574.0,94572.0,0.4106]
[1745851329860,0.00985633,94574.0,94572.0,0.4116]
[1745851330327,0.00985633,94573.0,94572.0,0.4116]
[1745851331125,0.00985633,94573.0,94572.0,0.4106]
[1745851331531,0.00985633,94573.0,94572.0,0.52249014]
[1745851331927,0.00985633,94573.0,94572.0,0.51749014]
[1745851332336,0.01085633,94573.0,94572.0,0.52249014]
[1745851336436,0.01085633,94573.0,94572.0,0.61669014]
[1745851337565,0.001,94573.0,94572.0,0.61669014]
[1745851337757,0.02720058,94601.0,94572.0,0.61669014]
[1745851337758,0.02720058,94601.0,94574.0,0.0489]
[1745851337962,0.00741811,94601.0,94580.0,0.36217895]
[1745851338115,0.00741811,94601.0,94581.0,0.10689014]
[1745851338552,0.00741811,94600.0,94581.0,0.10689014]
[1745851338678,0.01730631,94600.0,94590.0,0.36217895]
[1745851338878,0.01730631,94600.0,94592.0,0.0477]
[1745851339132,0.01730631,94600.0,94594.0,0.0472]
[1745851339343,0.01730631,94600.0,94595.0,0.51749014]
[1745851339344,0.00741811,94600.0,94595.0,0.51749014]
[1745851339536,0.0008498,94609.0,94595.0,0.51749014]
[1745851339779,0.0008498,94609.0,94599.0,0.36217895]
[1745851339981,0.0013062,94609.0,94600.0,0.10689014]
[1745851340774,0.004,94601.0,94600.0,0.10689014]
[1745851341155,0.0013062,94609.0,94600.0,0.10689014]
[1745851341823,0.0013062,94609.0,94600.0,0.10900393]
[1745851341989,0.0013062,94609.0,94601.0,0.0968]
[1745851342167,0.0013062,94609.0,94605.0,0.01454085]
[1745851342368,0.00741811,94628.0,94614.0,0.408445]
[1745851342556,0.08454291,94626.0,94614.0,0.506245]
[1745851343012,0.00986154,94625.0,94614.0,0.506245]
[1745851343148,0.01727965,94625.0,94614.0,0.61313514]
[1745851344217,0.00986154,94624.0,94614.0,0.61313514]
[1745851345565,0.00986154,94623.0,94614.0,0.61313514]
[1745851346874,0.00986154,94622.0,94614.0,0.62119253]
[1745851347991,0.00986154,94622.0,94615.0,0.408445]
[1745851348195,0.00986154,94621.0,94615.0,0.408445]
[1745851349025,0.00986154,94620.0,94615.0,0.408445]
[1745851350251,0.00986154,94619.0,94615.0,0.408445]
[1745851351022,0.00986154,94618.0,94615.0,0.408445]
[1745851352373,0.00986154,94618.0,94616.0,0.10689014]
[1745851352575,0.00741811,94627.0,94616.0,0.10689014]
[1745851352576,0.00986154,94617.0,94616.0,0.10689014]
[1745851353494,0.001,94618.0,94616.0,0.10689014]
[1745851353843,0.00986154,94628.0,94617.0,0.408445]
[1745851353975,0.00986154,94628.0,94618.0,0.1552037]
[1745851354173,0.00986154,94628.0,94618.0,0.15309014]
[1745851354583,0.00986154,94627.0,94618.0,0.15309014]
[1745851355667,0.00986154,94626.0,94618.0,0.15309014]
[1745851357328,0.003,94626.0,94618.0,0.15309014]
[1745851358741,0.003,94626.0,94618.0,0.10689014]
[1745851359464,0.003,94626.0,94618.0,0.10689014]
[1745851359658,0.003,94626.0,94619.0,0.408445]
[1745851359898,0.003,94626.0,94620.0,0.10689014]
[1745851360397,0.00986154,94625.0,94620.0,0.10689014]
[1745851361402,0.00986154,94628.0,94620.0,0.10689014]
[1745851361605,0.003,94625.0,94620.0,0.10689014]
[1745851362849,0.00986154,94627.0,94620.0,0.10689014]
[1745851363294,0.00986154,94626.0,94620.0,0.10689014]
[1745851364497,0.00986154,94625.0,94620.0,0.10689014]
[1745851365435,0.00986154,94625.0,94621.0,0.408445]
[1745851365584,0.00986154,94625.0,94622.0,0.10689014]
[1745851366416,0.00986154,94624.0,94622.0,0.10689014]
[1745851367136,0.01727965,94624.0,94622.0,0.10689014]
[1745851368153,0.00741811,94623.0,94622.0,0.10689014]
[1745851368476,0.01727965,94623.0,94622.0,0.10689014]
[1745851368899,0.00986154,94623.0,94622.0,0.10689014]
[1745851369666,0.004,94629.0,94622.0,0.10689014]
[1745851369667,0.004,94629.0,94627.0,0.39858346]
[1745851369843,0.004,94629.0,94628.0,0.10900324]
[1745851370045,0.004,94629.0,94628.0,0.16924409]
[1745851370255,0.004,94629.0,94628.0,0.21674409]
[1745851370509,0.004,94629.0,94628.0,0.21463099]
[1745851370916,0.004,94629.0,94628.0,0.55463099]
[1745851372850,0.004,94629.0,94628.0,0.55763099]
[1745851373174,0.004,94629.0,94628.0,0.81998492]
[1745851374045,0.004,94629.0,94628.0,0.81698492]
[1745851374468,0.004,94629.0,94628.0,0.60863099]
[1745851374686,0.004,94629.0,94628.0,0.81998492]
[1745851374930,0.004,94629.0,94628.0,0.60863099]
[1745851375128,0.004,94629.0,94628.0,0.83056528]
[1745851375815,0.004,94629.0,94628.0,0.82756528]
[1745851376025,0.006,94629.0,94628.0,0.82756528]
[1745851376788,0.006,94629.0,94628.0,0.56521135]
[1745851376907,0.006,94629.0,94628.0,0.5506705]
[1745851377120,0.006,94629.0,94628.0,0.3083105]
[1745851377534,0.006,94629.0,94628.0,0.32285135]
[1745851380203,0.002,94635.0,94632.0,0.39258346]
[1745851380374,0.002,94635.0,94633.0,0.10689014]
[1745851380569,0.002,94635.0,94634.0,0.39258346]
[1745851380751,0.002,94635.0,94634.0,0.4994736]
[1745851380961,0.002,94635.0,94634.0,0.51401445]
[1745851381435,0.002,94635.0,94634.0,0.51415162]
[1745851382020,0.004,94635.0,94634.0,0.51415162]
[1745851382578,0.002,94635.0,94634.0,0.51415162]
[1745851382792,0.005,94635.0,94634.0,0.51415162]
[1745851384925,0.00490717,94635.0,94634.0,0.51415162]
[1745851385838,0.003,94635.0,94634.0,0.51415162]
[1745851386041,0.0008496,94651.0,94637.0,0.38682649]
[1745851386304,0.0008496,94651.0,94638.0,0.10689014]
[1745851388837,0.0008496,94651.0,94639.0,0.00211282]
[1745851388994,0.0008496,94651.0,94640.0,0.10689014]
[1745851389801,0.0008496,94651.0,94637.0,0.38682649]
[1745851389802,0.0008496,94651.0,94642.0,0.12143099]
[1745851391862,0.0008496,94651.0,94645.0,0.38597649]
[1745851392061,0.0008496,94651.0,94646.0,0.10689014]
[1745851392291,0.0487,94650.0,94646.0,0.10689014]
[1745851392493,0.0487,94650.0,94640.0,0.005]
[1745851392695,0.0487,94650.0,94641.0,0.10689014]
[1745851392939,0.0487,94650.0,94642.0,0.004]
[1745851393155,0.0487,94650.0,94642.0,0.11089014]
[1745851393367,0.00986759,94649.0,94642.0,0.11089014]
[1745851393543,0.00986759,94649.0,94642.0,0.10689014]
[1745851395040,0.00986759,94648.0,94642.0,0.10689014]
[1745851396059,0.00986759,94647.0,94642.0,0.10689014]
[1745851397707,0.01726909,94646.0,94643.0,0.38597649]
[1745851398558,0.0074015,94645.0,94643.0,0.38597649]
[1745851398807,0.00986759,94644.0,94643.0,0.38597649]
[1745851399860,0.00986759,94644.0,94643.0,0.38697649]
[1745851400465,0.00986759,94644.0,94643.0,0.38597649]
[1745851400659,0.00986759,94644.0,94643.0,0.38697649]
[1745851400858,0.00986759,94644.0,94643.0,0.49386663]
[1745851402697,0.0008496,94651.0,94643.0,0.49386663]
[1745851402847,0.0008496,94651.0,94644.0,0.1090029]
[1745851402848,0.00741976,94650.0,94644.0,0.1090029]
[1745851403977,0.0008496,94651.0,94644.0,0.1090029]
[1745851404142,0.0008496,94651.0,94644.0,0.10689014]
[1745851404602,0.00989328,94650.0,94644.0,0.10689014]
[1745851405506,0.00989328,94649.0,94644.0,0.10689014]
[1745851406458,0.00989328,94649.0,94645.0,0.38597649]
[1745851406658,0.00989328,94649.0,94646.0,0.10689014]
[1745851406859,0.0008496,94651.0,94646.0,0.10689014]
[1745851407669,0.0008496,94651.0,94647.0,0.09744]
[1745851407844,0.0008496,94651.0,94648.0,0.10689014]
[1745851408040,0.00989385,94650.0,94648.0,0.10689014]
[1745851409047,0.0008496,94651.0,94649.0,0.0021128]
[1745851409247,0.0008496,94651.0,94650.0,0.10689014]
[1745851410230,0.0008496,94651.0,94650.0,0.10900277]
[1745851411199,0.0008496,94651.0,94650.0,0.10689014]
[1745851412296,0.0008496,94651.0,94650.0,0.49286663]
[1745851412497,0.0008496,94651.0,94650.0,0.41959563]
[1745851412856,0.0008496,94651.0,94650.0,0.42159563]
[1745851413906,0.0008496,94651.0,94650.0,0.51903563]
[1745851415431,0.0008496,94651.0,94650.0,0.56673563]
[1745851415632,0.0008496,94651.0,94650.0,0.58127648]
[1745851415957,0.0008496,94651.0,94650.0,0.63107648]
[1745851416569,0.0008482,94673.0,94650.0,0.63107648]
[1745851416570,0.0008482,94673.0,94664.0,0.37858189]
[1745851416766,0.0008482,94673.0,94665.0,0.48758426]
[1745851417019,0.0008482,94673.0,94665.0,0.48547203]
[1745851419907,0.0008482,94673.0,94665.0,0.48647203]
[1745851421400,0.0008482,94673.0,94665.0,0.53507203]
[1745851421867,0.0008482,94673.0,94665.0,0.54961288]
[1745851422685,0.0008482,94673.0,94665.0,0.59821288]
[1745851423207,0.002,94685.0,94675.0,0.37518769]
[1745851423418,0.002,94685.0,94676.0,0.20644213]
[1745851424051,0.002,94685.0,94678.0,0.01454085]
[1745851424275,0.002,94685.0,94679.0,0.10900201]
[1745851424810,0.002,94685.0,94680.0,0.12143099]
[1745851425013,0.002,94685.0,94680.0,0.33266884]
[1745851425192,0.002,94685.0,94680.0,0.12143099]
[1745851425395,0.002,94685.0,94680.0,0.12354277]
[1745851425820,0.002,94685.0,94680.0,1.09636831]
[1745851425987,0.002,94685.0,94680.0,1.09425653]
[1745851426169,0.002,94685.0,94680.0,0.88201868]
[1745851426368,0.002,94685.0,94680.0,1.09325653]
[1745851427160,0.0038482,94681.0,94680.0,1.09325653]
[1745851427993,0.0038482,94681.0,94680.0,0.88201868]
[1745851429872,0.0038482,94681.0,94680.0,1.09325653]
[1745851430091,0.0008478,94704.0,94699.0,0.36194609]
[1745851430298,0.00108584,94700.0,94699.0,0.56615623]
[1745851437676,0.00108584,94700.0,94699.0,0.57411678]
[1745851442829,0.00099305,94700.0,94699.0,0.57411678]
[1745851451495,0.01087258,94700.0,94699.0,0.57411678]
[1745851454437,0.01829286,94700.0,94699.0,0.57411678]
[1745851455087,0.01087258,94700.0,94699.0,0.57411678]
[1745851455968,0.01087258,94700.0,94699.0,0.63395763]
[1745851455969,0.01086537,94700.0,94699.0,0.63395763]
[1745851456172,0.0004245,94712.0,94704.0,0.34937791]
[1745851456381,0.0004245,94712.0,94705.0,0.10689014]
[1745851456382,0.00130588,94707.0,94705.0,0.10689014]
[1745851457004,0.00130588,94707.0,94705.0,0.10900149]
[1745851457126,0.00130588,94707.0,94705.0,0.10689014]
[1745851457483,0.00130588,94707.0,94706.0,0.04891135]
[1745851457693,0.00130588,94707.0,94706.0,0.15580149]
[1745851457892,0.00130588,94707.0,94706.0,0.10689014]
[1745851458303,0.00130588,94707.0,94706.0,0.1090015]
[1745851458663,0.00130588,94707.0,94706.0,0.10689014]
[1745851458863,0.00130588,94707.0,94706.0,0.10900145]
[1745851459043,0.00130588,94707.0,94706.0,0.1235423]
[1745851459243,0.00130588,94707.0,94706.0,0.12354221]
[1745851459660,0.00130588,94707.0,94706.0,0.12343099]
[1745851460284,0.00130588,94707.0,94706.0,0.22063099]
[1745851460503,0.00130588,94707.0,94706.0,0.77181085]
[1745851461120,0.00741115,94748.0,94720.0,0.34025233]
[1745851461320,0.00213698,94735.0,94723.0,0.01454085]
[1745851461537,0.00213698,94735.0,94725.0,0.01454085]
[1745851461893,0.00213698,94735.0,94726.0,0.10689014]
[1745851463011,0.00213698,94735.0,94726.0,0.10789014]
[1745851463236,0.00213698,94735.0,94727.0,0.00211084]
[1745851463471,0.00213698,94735.0,94728.0,0.10689014]
[1745851463692,0.00213698,94735.0,94729.0,0.00211084]
[1745851463908,0.00213698,94735.0,94731.0,0.35454085]
[1745851464104,0.00213698,94735.0,94734.0,0.01454085]
[1745851464388,0.00213698,94735.0,94734.0,0.21844158]
[1745851464532,0.00213698,94735.0,94734.0,0.21633099]
[1745851464733,0.00213698,94735.0,94734.0,0.21844144]
[1745851465496,0.00213698,94735.0,94734.0,0.21633099]
[1745851467911,0.00213698,94735.0,94734.0,0.17113099]
[1745851468116,0.043896,94762.0,94744.0,0.33769155]
[1745851468376,0.043896,94762.0,94745.0,0.54174169]
[1745851468586,0.08454291,94750.0,94745.0,0.33769155]
[1745851469312,0.049,94749.0,94745.0,0.33769155]
[1745851471096,0.0473,94748.0,94745.0,0.33769155]
[1745851473359,0.0493,94748.0,94745.0,0.33769155]
[1745851473940,0.0493,94748.0,94739.0,0.09712]
[1745851475645,0.0473,94748.0,94739.0,0.09712]
[1745851476058,0.0493,94748.0,94739.0,0.09712]
[1745851478300,0.0493,94748.0,94730.0,0.33769155]
[1745851478301,0.34,94746.0,94730.0,0.33769155]
[1745851478514,0.34,94739.0,94702.0,0.33769155]
[1745851478716,0.0469,94710.0,94703.0,0.33769155]
[1745851479977,0.0469,94710.0,94703.0,0.33782853]
[1745851482436,0.0469,94710.0,94703.0,0.33882853]
[1745851486645,0.0172059,94719.0,94704.0,0.10689014]
[1745851486646,0.3572059,94719.0,94704.0,0.10689014]
[1745851486757,0.34737458,94719.0,94704.0,0.10689014]
[1745851487168,0.34737458,94719.0,94703.0,0.33882853]
[1745851487630,0.34,94719.0,94703.0,0.33882853]
[1745851488282,0.34,94719.0,94703.0,0.33782853]
[1745851488688,0.34,94719.0,94703.0,0.33882853]
[1745851489175,0.34,94719.0,94703.0,0.33782853]
[1745851489615,0.001,94719.0,94703.0,0.33782853]
[1745851490253,0.341,94719.0,94703.0,0.33782853]
[1745851491404,0.0495,94718.0,94703.0,0.33782853]
[1745851491620,0.0492,94712.0,94703.0,0.33782853]
[1745851493438,0.0502,94712.0,94703.0,0.33782853]
[1745851497541,0.0502,94712.0,94703.0,0.33782853]
[1745851498417,0.001,94712.0,94703.0,0.33782853]
[1745851500759,0.001,94712.0,94704.0,0.10689014]
[1745851502126,0.34,94719.0,94703.0,0.33782853]
[1745851502301,0.34737135,94719.0,94703.0,0.33782853]
[1745851502477,0.001,94712.0,94703.0,0.33782853]
[1745851502893,0.34737135,94719.0,94703.0,0.33782853]
[1745851502894,0.00982847,94718.0,94704.0,0.10689014]
[1745851503427,0.00982847,94718.0,94705.0,0.33769155]
[1745851503812,0.00982847,94717.0,94705.0,0.33769155]
[1745851504541,0.36217895,94715.0,94705.0,0.33769155]
[1745851504741,0.047,94714.0,94705.0,0.33769155]
[1745851505016,0.05682847,94714.0,94705.0,0.33769155]
[1745851505582,0.00737135,94713.0,94705.0,0.33769155]
[1745851505987,0.00982847,94712.0,94705.0,0.33769155]
[1745851506170,0.00737135,94711.0,94705.0,0.33769155]
[1745851506569,0.00982847,94710.0,94705.0,0.33769155]
[1745851506965,0.00737135,94709.0,94705.0,0.33769155]
[1745851507388,0.00982847,94708.0,94705.0,0.33769155]
[1745851508096,0.00737135,94707.0,94705.0,0.33769155]
[1745851508535,0.00982847,94706.0,94705.0,0.33769155]
[1745851508736,0.01719982,94706.0,94705.0,0.33769155]
[1745851509197,0.01719982,94706.0,94705.0,0.44458169]
[1745851509806,0.01719982,94706.0,94705.0,0.33769155]
[1745851510012,0.01719982,94706.0,94705.0,0.33869155]
[1745851514710,0.01719982,94706.0,94705.0,0.22001231]
[1745851514884,0.01719982,94706.0,94705.0,0.14283681]
[1745851515906,0.06629982,94706.0,94705.0,0.14283681]
[1745851516800,0.06629982,94706.0,94705.0,0.14183681]
[1745851517325,0.06729982,94706.0,94705.0,0.14183681]
[1745851517885,0.06729982,94706.0,94705.0,0.12532235]
[1745851518097,0.01819982,94706.0,94705.0,0.12532235]
[1745851519172,0.01819982,94706.0,94705.0,0.23221249]
[1745851519306,0.01819982,94706.0,94705.0,0.68781249]
[1745851519507,0.01819982,94706.0,94705.0,0.70235334]
[1745851519895,0.00837135,94706.0,94705.0,0.70235334]
[1745851520096,0.00737135,94749.0,94708.0,0.01454085]
[1745851520341,0.00737135,94749.0,94720.0,0.36217895]
[1745851520514,0.00737135,94749.0,94721.0,0.10900128]
[1745851520715,0.34737135,94749.0,94721.0,0.10900128]
[1745851520922,0.00737135,94749.0,94721.0,0.10900128]
[1745851521133,0.34737135,94749.0,94721.0,0.10900128]
[1745851521522,0.00737135,94748.0,94721.0,0.10689014]
[1745851521734,0.01723782,94748.0,94721.0,0.10689014]
[1745851522540,0.00737135,94747.0,94721.0,0.10689014]
[1745851522738,0.00986647,94746.0,94722.0,0.5044]
[1745851522954,0.00986647,94746.0,94730.0,0.36217895]
[1745851523160,0.00986647,94746.0,94731.0,0.61652108]
[1745851523368,0.00986647,94746.0,94732.0,0.00211094]
[1745851523574,0.00986647,94746.0,94733.0,0.10689014]
[1745851523995,0.002,94747.0,94734.0,0.41271081]
[1745851524179,0.002,94747.0,94735.0,0.10689014]
[1745851524586,0.00204564,94747.0,94735.0,0.10689014]
[1745851525015,4.564e-05,94747.0,94735.0,0.10689014]
[1745851525444,0.001,94746.0,94735.0,0.10689014]
[1745851525892,4.564e-05,94747.0,94735.0,0.10689014]
[1745851526102,0.00204564,94747.0,94735.0,0.10689014]
[1745851526330,0.00204564,94747.0,94735.0,0.11322718]
[1745851526565,0.00204564,94747.0,94735.0,0.10689014]
[1745851529746,0.00204564,94747.0,94736.0,0.4106]
[1745851529971,0.00204564,94747.0,94737.0,0.10689014]
[1745851531341,0.00204564,94747.0,94737.0,0.10900097]
[1745851531897,0.00204564,94747.0,94739.0,0.0477]
[1745851532087,4.564e-05,94747.0,94740.0,0.10900065]
[1745851532297,0.00204564,94747.0,94740.0,0.10900065]
[1745851532495,0.00204564,94747.0,94741.0,0.09688]
[1745851532690,0.00204564,94747.0,94742.0,0.10689014]
[1745851532893,4.564e-05,94747.0,94742.0,0.10689014]
[1745851533897,4.564e-05,94747.0,94742.0,0.10789014]
[1745851535581,4.564e-05,94747.0,94743.0,0.4106]
[1745851535795,4.564e-05,94747.0,94744.0,0.10689014]
[1745851538787,4.564e-05,94747.0,94745.0,0.00211069]
[1745851539001,4.564e-05,94747.0,94746.0,0.51749014]
[1745851539218,4.564e-05,94747.0,94746.0,0.56549014]
[1745851540924,4.564e-05,94747.0,94746.0,0.61099014]
[1745851542119,4.564e-05,94747.0,94746.0,0.61199014]
[1745851544116,4.564e-05,94747.0,94746.0,0.62653099]
[1745851544327,0.004,94779.0,94749.0,0.02509505]
[1745851544585,0.00046934,94773.0,94764.0,0.01454085]
[1745851544756,0.00046934,94773.0,94766.0,0.01454085]
[1745851544934,0.00046934,94773.0,94767.0,0.10689014]
[1745851545164,0.00046934,94773.0,94769.0,0.01454085]
[1745851545366,0.00046934,94773.0,94771.0,0.01454085]
[1745851545570,0.00046934,94773.0,94772.0,0.12143099]
[1745851546321,0.00146934,94773.0,94772.0,0.12143099]
[1745851546534,0.00146934,94773.0,94772.0,0.12354074]
[1745851546738,0.00046934,94773.0,94772.0,0.12354074]
[1745851546907,0.00046934,94773.0,94772.0,0.12854074]
[1745851548040,0.00037659,94773.0,94772.0,0.12854074]
[1745851548333,0.00037659,94773.0,94772.0,0.12643099]
[1745851550184,0.00037659,94773.0,94772.0,0.53698535]
[1745851550363,0.00037659,94773.0,94772.0,0.87698535]
[1745851550780,0.00037659,94773.0,94772.0,1.08801814]
[1745851551407,0.00037659,94773.0,94772.0,1.0985489]